Cogmind - Beta 10.2 --- EXPLORER MODE // 2021.02.26 @ 11:16:33 Player: PYNTER Result: Self-destructed Performance ------------- Evolutions (2) 1000 Regions Visited (5) 1000 Robots Destroyed (32) 160 Value Destroyed (833) 833 Prototype IDs (4) 80 Alien Tech Used (0) 0 Bonus (339) 339 TOTAL SCORE: 3412 Bonus ------- High Alert Combat Kills 39 Aligned with FarCom 300 Cogmind --------- Core Integrity 287/550 Matter 38/300 Energy 265/265 System Corruption 0% Temperature Cool (0) Movement Rolling (90) Ox1 Location -8/Materials Parts ------- > --- POWER (1) -------- Improved Ion Engine > --- PROPULSION (2) --- Wheel Wheel > --- UTILITY (7) ------ Improved Heat Sink Lightpack 2.0 Structural Scanner Advanced Visual Processing Unit Light Armor Plating Hardened Light Armor Plating > --- WEAPON (2) ------- Light Cannon Mining Laser > --- INVENTORY (24) --- Wheel Airjet Airjet Heat Sink Large Storage Unit Large Storage Unit Large Storage Unit Large Storage Unit Large Storage Unit High-capacity Storage Unit High-capacity Storage Unit High-capacity Storage Unit High-capacity Storage Unit Large Battery (300) Large Battery (300) Large Matter Pod (150) High-capacity Matter Pod (200) High-capacity Matter Pod (200) Sensor Array Experimental Sensor Array Improved Terrain Scan Processor Light Armor Plating Rocket Launcher Datajack Peak State ------------ > --- POWER ------------ Light Nuclear Core > --- PROPULSION ------- Wheel > --- UTILITY ---------- Lightpack 2.0 Structural Scanner Experimental Sensor Array Terrain Scanner Hardened Light Armor Plating Hardened Light Armor Plating > --- WEAPON ----------- Heavy Laser Minigun > --- INVENTORY -------- Wheel Large Storage Unit Large Storage Unit Large Storage Unit Large Storage Unit Large Storage Unit Large Storage Unit Large Storage Unit High-capacity Storage Unit High-capacity Storage Unit High-capacity Storage Unit High-capacity Storage Unit Large Battery Large Battery Large Matter Pod High-capacity Matter Pod High-capacity Matter Pod Sensor Array Light Cannon Rocket Launcher Datajack Mining Laser [Rating: 45] Favorites ----------- Power Ion Engine Engine Ion Engine Power Core Light Nuclear Core Propulsion Wheel Leg Aluminum Leg Wheel Wheel Utility Structural Scanner Device Structural Scanner Storage Large Storage Unit Processor Advanced Visual Processing Unit Protection Hardened Light Armor Plating Weapon Beam Cannon Energy Gun Small Laser Energy Cannon Beam Cannon Ballistic Gun Assault Rifle Ballistic Cannon Light Cannon Special Weapon Mining Laser Build | -11 -10 -10 -10 -9 -8 ------- Run | Scr Mat Min Exi Min Mat Slots Evolved 5 | . 1 . . . 4 Power . | . . . . . . Propulsion . | . . . . . . Utility 5 | . 1 . . . 4 Weapon . | . . . . . . Parts Attached 49 | 8 14 4 3 . 20 Power 5 | 2 . . 1 . 2 Engine 4 | 2 . . . . 2 Core 1 | . . . 1 . . Reactor . | . . . . . . Propulsion 8 | 2 3 . . . 3 Treads . | . . . . . . Leg 2 | 2 . . . . . Wheel 6 | . 3 . . . 3 Hover . | . . . . . . Flight . | . . . . . . Utility 22 | 2 6 2 2 . 10 Device 10 | . 4 1 1 . 4 Storage 4 | 1 1 1 1 . . Processor 2 | . 1 . . . 1 Hackware . | . . . . . . Protection 6 | 1 . . . . 5 Artifact . | . . . . . . Weapon 14 | 2 5 2 . . 5 Energy Gun 2 | 1 . . . . 1 Energy Cannon 4 | . 3 1 . . . Ballistic Gun 2 | 1 . . . . 1 Ballistic Cannon 5 | . 2 1 . . 2 Launcher . | . . . . . . Special Weapon 1 | . . . . . 1 Impact Weapon . | . . . . . . Slashing Weapon . | . . . . . . Piercing Weapon . | . . . . . . Special Melee Weapon . | . . . . . . Unidentified Prototypes 2 | . . 1 1 . . Parts Lost 3 | . . . . . 3 Power 1 | . . . . . 1 Propulsion 1 | . . . . . 1 Utility . | . . . . . . Weapon 1 | . . . . . 1 Highest Loss Streak 1 | . . . . . 1 Average Slot Usage (%) 95 | . 100 100 91 87 85 Engine 7 | . 12 12 1 . 3 Core 2 | . . . 10 12 4 Leg 1 | . 4 . . . . Wheel 21 | . 20 25 25 25 15 Device 20 | . 18 25 16 12 20 Storage 11 | . 12 12 12 12 8 Protection 5 | . 5 . . . 16 Energy Gun 1 | . 2 . . . 1 Energy Cannon 9 | . 10 12 12 12 4 Ballistic Cannon 9 | . 9 12 12 12 6 Naked Turns . | . . . . . . Heaviest Build 32 | 19 31 29 32 17 32 Greatest Support 20 | 20 20 20 20 20 20 Greatest Overweight (x) 4 | 4 3 1 1 . 3 Average Overweight (x) . | . . 1 . . . Largest Inventory Capacity 30 | 8 10 10 30 24 24 Average Capacity 14 | 7 9 10 18 24 24 Most Carried 24 | 8 10 10 24 24 24 Average Carried 13 | 5 9 9 13 24 23 Final Capacity 24 | 8 10 10 24 24 24 Final Carried 24 | 7 10 10 24 24 24 Class Distribution -------------------- 65% | Hacker-Mutant 18% | Hauler-Skirmisher 12% | Hauler-Mutant 3% | Scavenger-Mutant Dominant Class ---------------- Hacker-Mutant | -10/Materials Hacker-Mutant | -10/Mines Hauler-Mutant | -10/Exiles Hauler-Skirmisher | -9/Mines Hauler-Skirmisher | -8/Materials Resources | -11 -10 -10 -10 -9 -8 ----------- Run | Scr Mat Min Exi Min Mat Matter Collected 1253 | 205 257 239 126 . 426 Remotely . | . . . . . . Salvage Created 711 | . 154 154 . . 403 Parts 47 | . 16 13 . . 18 Haulers Intercepted . | . . . . . . Recyclers Shooed . | . . . . . . Parts Field Recycled . | . . . . . . Retrieved Matter . | . . . . . . Parts Self-Destructed . | . . . . . . Prevented . | . . . . . . Kills | -11 -10 -10 -10 -9 -8 ------- Run | Scr Mat Min Exi Min Mat Combat Hostiles Destroyed 28 | . 7 8 . . 13 Guns 1 | . . . . . 1 Cannons 24 | . 7 8 . . 9 AOE 2 | . . . . . 2 Classes Destroyed 6 | . 3 . . . 3 Builder 1 | . . . . . 1 Watcher 3 | . 3 . . . . Swarmer 15 | . 6 6 . . 3 Grunt 9 | . 1 2 . . 6 Sentry 3 | . . . . . 3 Hunter 1 | . . . . . 1 Best Kill Streak 9 | . 2 2 . . 9 Combat Bots Only 7 | . 2 2 . . 7 Max Kills in Single Turn 2 | . 1 1 . . 2 Gunslinging . | . . . . . . Exploded 2 | . . . . . 2 Melee . | . . . . . . Uniques/NPCs Destroyed . | . . . . . . Combat | -11 -10 -10 -10 -9 -8 -------- Run | Scr Mat Min Exi Min Mat Damage Taken 1076 | . 75 128 . . 873 Core 290 | . 5 22 . . 263 Absorbed by Shields . | . . . . . . Core Remaining (%) 94 | 100 . . . 89 . Volleys Fired 76 | . 16 18 . . 42 Largest 2 | . 2 2 . . 2 Hottest 135 | . 120 95 . . 135 Shots Fired 144 | . 32 36 . . 76 Gun 10 | . . . . . 10 Cannon 127 | . 32 36 . . 59 Launcher . | . . . . . . Special 7 | . . . . . 7 Kinetic 71 | . 13 18 . . 40 Thermal 73 | . 19 18 . . 36 Explosive . | . . . . . . Electromagnetic . | . . . . . . Robot Hit Streak 18 | . 8 17 . . 18 Robot Miss Streak 4 | . 2 2 . . 4 Penetration Max . | . . . . . . Secondary Targets 1 | . . . . . 1 Max Gunslinging Chain 1 | . . . . . 1 Shots Hit Robots 108 | . 20 27 . . 61 Core Hits 51 | . 10 9 . . 32 Critical Hits 1 | . . . . . 1 Critical Kills . | . . . . . . Critical Parts Destroyed 1 | . . . . . 1 Melee Attacks . | . . . . . . Impact . | . . . . . . Slashing . | . . . . . . Piercing . | . . . . . . Sneak Attacks . | . . . . . . Combat Hostiles . | . . . . . . Follow-up Attacks . | . . . . . . Damage Inflicted 2154 | . 367 410 . . 1377 Guns 161 | . . . . . 161 Cannons 1662 | . 367 410 . . 885 Explosions 213 | . . . . . 213 Melee . | . . . . . . Ramming 22 | . . . . . 22 Kinetic 908 | . 124 165 . . 619 Thermal 1011 | . 243 245 . . 523 Explosive 213 | . . . . . 213 Electromagnetic . | . . . . . . Impact . | . . . . . . Slashing . | . . . . . . Piercing . | . . . . . . Highest Corruption 1 | . 1 1 1 1 . Average Corruption 1 | . 1 1 1 1 . Corruption Purged . | . . . . . . Effects 9 | . 1 7 1 . . Message Errors 3 | . . 3 . . . Energy Discharges 1 | . . . 1 . . Data Loss (minor) 3 | . 1 2 . . . Targeting Errors 2 | . . 2 . . . Overload Shots . | . . . . . . Overflow Damage 24 | . 8 . . . 16 Projectiles 22 | . 8 . . . 14 Explosions . | . . . . . . Melee 2 | . . . . . 2 Knockbacks 8 | . 1 . . . 7 Impact . | . . . . . . Kinetic 8 | . 1 . . . 7 Secondary . | . . . . . . Self-Inflicted Damage 9 | . . . . . 9 Shots . | . . . . . . Rammed 7 | . . . . . 7 Targets Rammed 7 | . . . . . 7 Kicked . | . . . . . . Crushed . | . . . . . . Highest Temperature 890 | . 210 261 . . 890 Average Temperature 217 | . 74 102 . . 332 Received Heat Transfer 360 | . . 63 . . 297 Effects 43 | . . . . . 43 Shutdowns 5 | . . . . . 5 Energy Bleed 3 | . . . . . 3 Interference 2 | . . . . . 2 Matter Decay 10 | . . . . . 10 Short Circuit 3 | . . . . . 3 Damage (minor) 1 | . . . . . 1 Damage (major) 17 | . . . . . 17 Damage (core) 2 | . . . . . 2 Siege Activations . | . . . . . . Robots Corrupted . | . . . . . . Combat Hostiles . | . . . . . . Parts Fried 1 | . . . . . 1 Impact Corruptions 1 | . . . . . 1 Robots Melted . | . . . . . . Combat Hostiles . | . . . . . . Parts Melted 2 | . . 1 . . 1 Heat Transferred 2124 | . 518 518 . . 1088 Parts Sabotaged . | . . . . . . Parts Stolen . | . . . . . . Parts Stripped . | . . . . . . Power Chain Reactions . | . . . . . . Missiles Intercepted . | . . . . . . Alert | -11 -10 -10 -10 -9 -8 ------- Run | Scr Mat Min Exi Min Mat Peak Influence 554 | . 168 163 . . 554 Initial 13 | . . 13 . . . Average 101 | . 51 79 . . 213 Maximum Alert Level 2 | . . . . . 2 Low Security (%) 83 | 100 100 100 . 100 40 Level 1 13 | . . . . . 47 Level 2 3 | . . . . . 12 Level 3 . | . . . . . . Level 4 . | . . . . . . Level 5 . | . . . . . . High Security . | . . . . . . Max Security . | . . . . . . Squads Dispatched 2 | . 1 . . . 1 Investigation 2 | . 1 . . . 1 Extermination . | . . . . . . Reinforcement . | . . . . . . Assault . | . . . . . . Garrison . | . . . . . . Intercept . | . . . . . . Construction Impeded . | . . . . . . Haulers Reinforced . | . . . . . . Stealth | -11 -10 -10 -10 -9 -8 --------- Run | Scr Mat Min Exi Min Mat Distress Signals 1 | . . . . . 1 Communications Jammed . | . . . . . . Distress Signals . | . . . . . . Times Spotted 43 | . 15 8 . . 20 Peak Tracking Total 8 | . 4 2 . . 8 Tactical Retreats 3 | . 1 . . . 2 Traps | -11 -10 -10 -10 -9 -8 ------- Run | Scr Mat Min Exi Min Mat Traps Triggered 2 | . 2 . . . . Indirectly . | . . . . . . Trap Hack Attempts . | . . . . . . Triggered . | . . . . . . Disarmed . | . . . . . . Reprogrammed . | . . . . . . Reused . | . . . . . . Traps Extracted . | . . . . . . Installed . | . . . . . . Triggered . | . . . . . . Machines | -11 -10 -10 -10 -9 -8 ---------- Run | Scr Mat Min Exi Min Mat Machines Disabled 4 | . 1 . . . 3 Max in Single Turn 1 | . 1 . . . 1 Garrison Access 1 | . . . . . 1 Machines Sabotaged . | . . . . . . Garrisons Compromised . | . . . . . . Overloaded Fab Kills . | . . . . . . Fab Network Shutdowns . | . . . . . . Hacking | -11 -10 -10 -10 -9 -8 --------- Run | Scr Mat Min Exi Min Mat Machines Accessed 17 | . 7 1 4 . 5 Terminals 9 | . 6 1 . . 2 Fabricators . | . . . . . . Repair Stations 1 | . . . . . 1 Recycling Units 1 | . 1 . . . . Scanalyzers 1 | . . . . . 1 Garrison Access 1 | . . . . . 1 Total Hacks 71 | . 14 2 49 . 6 Successful 66 | . 10 2 49 . 5 Failed 5 | . 4 . . . 1 Catastrophic . | . . . . . . Database Lockouts . | . . . . . . Manual 12 | . 6 1 1 . 4 Terminals 17 | . 13 2 . . 2 Fabricators . | . . . . . . Repair Stations 2 | . . . . . 2 Recycling Units 1 | . 1 . . . . Scanalyzers 1 | . . . . . 1 Garrison Access 1 | . . . . . 1 Terminal Hacks 56 | . 6 1 49 . . Record 52 | . 3 . 49 . . Prototype ID Bank 1 | . 1 . . . . Branch Access Points 1 | . 1 . . . . Recall Investigation 1 | . 1 . . . . Zone Layout 1 | . . 1 . . . Fabricator Hacks . | . . . . . . Repair Station Hacks 2 | . . . . . 2 Scan Component 1 | . . . . . 1 Repair 1 | . . . . . 1 Recycling Unit Hacks . | . . . . . . Scanalyzer . | . . . . . . Garrison Access Hacks . | . . . . . . Unauthorized Hacks 8 | . 4 1 . . 3 Terminals 6 | . 3 1 . . 2 Track 1 | . . 1 . . . Assimilate 5 | . 3 . . . 2 Fabricators . | . . . . . . Repair Stations . | . . . . . . Recycling Units 1 | . 1 . . . . Tunnel 1 | . 1 . . . . Scanalyzers . | . . . . . . Garrison Access 1 | . . . . . 1 Jam 1 | . . . . . 1 Data Cores Recovered . | . . . . . . Used . | . . . . . . Hacking Detections 8 | . 6 . . . 2 Full Trace Events . | . . . . . . Feedback Events . | . . . . . . Feedback Blocked . | . . . . . . Robot Schematics Acquired . | . . . . . . Robots Built . | . . . . . . Matter . | . . . . . . Time . | . . . . . . Total Robot Build Rating . | . . . . . . Part Schematics Acquired . | . . . . . . Parts Built . | . . . . . . Matter . | . . . . . . Time . | . . . . . . Total Part Build Rating . | . . . . . . Parts Repaired 1 | . . . . . 1 Time 80 | . . . . . 80 Parts Recycled . | . . . . . . Recycled Matter . | . . . . . . Retrieved Matter . | . . . . . . Retrieved Components . | . . . . . . Parts Scanalyzed . | . . . . . . Part Schematics Acquired . | . . . . . . Parts Damaged . | . . . . . . Bothacking | -11 -10 -10 -10 -9 -8 ------------ Run | Scr Mat Min Exi Min Mat Used RIF Installer . | . . . . . . Robots Hacked . | . . . . . . Non-combat . | . . . . . . Combat . | . . . . . . Robot Hacks Applied . | . . . . . . Relay Couplers Released . | . . . . . . Robots Rewired . | . . . . . . Allies Hacked . | . . . . . . Hacks Repelled . | . . . . . . Allies | -11 -10 -10 -10 -9 -8 -------- Run | Scr Mat Min Exi Min Mat Total Allies . | . . . . . . Largest Group . | . . . . . . Highest-Rated Group . | . . . . . . Highest-Rated Ally . | . . . . . . Total Orders . | . . . . . . Ally Attacks . | . . . . . . Total Damage . | . . . . . . Kills . | . . . . . . Allies Corrupted . | . . . . . . Allies Melted . | . . . . . . Intel | -11 -10 -10 -10 -9 -8 ------- Run | Scr Mat Min Exi Min Mat Robot Analysis Total . | . . . . . . Derelict Logs Recovered . | . . . . . . Drone Launches . | . . . . . . Drone Recoveries . | . . . . . . Exploration | -11 -10 -10 -10 -9 -8 ------------- Run | Scr Mat Min Exi Min Mat Turns Passed 3212 | 143 960 792 574 15 728 Spaces Moved 2764 | 89 759 758 657 19 482 Core 17 | 17 . . . . . Treads . | . . . . . . Legs 180 | 72 108 . . . . Wheels 2567 | . 651 758 657 19 482 Hover . | . . . . . . Flight . | . . . . . . Fastest Speed 50 | 50 90 90 80 80 80 Average Speed 92 | 140 97 90 83 80 89 Slowest Speed 250 | 250 150 90 90 80 110 Overloaded Moves . | . . . . . . Propulsion Burnouts . | . . . . . . Robots Hopped . | . . . . . . Cave-ins Triggered . | . . . . . . Exploration Rate (%) 52 | 6 85 97 92 9 27 Regions Visited 5 Branch Regions 3 Pre-discovered Areas 2 | . 1 . 1 . . Known Exits Taken 5 | 1 1 1 1 1 . Unknown Exits Taken . | . . . . . . Scrap Searched . | . . . . . . Spaces Dug . | . . . . . . Terrain Destroyed 31 | . . . . . 31 Melee . | . . . . . . Projectile . | . . . . . . AOE 31 | . . . . . 31 Terrain Rammed . | . . . . . . Walls Destroyed . | . . . . . . Machines Disabled . | . . . . . . Actions | -11 -10 -10 -10 -9 -8 --------- Run | Scr Mat Min Exi Min Mat Total 3276 | 103 950 831 683 18 691 Wait 287 | . 124 46 2 . 115 Move 2759 | 88 758 757 656 18 482 Hop . | . . . . . . Pick Up 59 | 7 20 3 17 . 12 Fast Attach 13 | 6 2 . 1 . 4 Attach 10 | 1 1 . . . 8 Detach . | . . . . . . Swap 26 | 1 11 4 2 . 8 Drop 39 | . 18 3 5 . 13 Fire 76 | . 16 18 . . 42 Melee . | . . . . . . Ram 7 | . . . . . 7 Kick . | . . . . . . Crush . | . . . . . . Escape Stasis . | . . . . . . Rewire . | . . . . . . Trap . | . . . . . . Miscellaneous . | . . . . . . Route ------- -11/Scrapyard -10/Materials (discovered 5 exits: *Mat x3 / *Min x2) -10/Mines (discovered 3 exits: *Mat x2 / *Exi) -10/Exiles -9/Mines -8/Materials History --------- Turn | Location | Event 7 | -11/Scrapyard | Identified exit to Materials 7 | -11/Scrapyard | Discovered exit to Materials (range 14) 144 | -11/Scrapyard | Entered Materials 144 | -10/Materials | Evolved 1 slot: Utility x1 361 | -10/Materials | Build established: Hacker-Mutant 403 | -10/Materials | Identified exit to Materials 403 | -10/Materials | Discovered exit to Materials (range 3) 662 | -10/Materials | Discovered exit to Materials (range 3) 719 | -10/Materials | Identified exit to Mines 1023 | -10/Materials | Discovered exit to Materials (range 14) 1104 | -10/Materials | Entered Mines 1344 | -10/Mines | Found a damaged Exp. Sensor Array with a note attached 1351 | -10/Mines | Found Prototype Device 1352 | -10/Mines | Identified Exp. Sensor Array 1368 | -10/Mines | Deemed a non-threat by the Exiles lab entrance 1369 | -10/Mines | Identified exit to Exiles 1369 | -10/Mines | Discovered exit to Exiles (range 5) 1416 | -10/Mines | Discovered exit to Materials (range 8) 1519 | -10/Mines | Discovered exit to Materials (range 7) 1858 | -10/Mines | Received a Rocket Launcher from a helpful Derelict 1896 | -10/Mines | Entered Exiles 1920 | -10/Exiles | Met 8R-AWN 1933 | -10/Exiles | Met EX-HEX 2005 | -10/Exiles | Met EX-DEC 2023 | -10/Exiles | Learned location of Zion (-7) 2053 | -10/Exiles | Met EX-BIN 2066 | -10/Exiles | Aligned with FarCom system 2067 | -10/Exiles | Given EX-Vault access code 2112 | -10/Exiles | Opened EX-Vault 2118 | -10/Exiles | Found Prototype Storage 2118 | -10/Exiles | Identified Lightpack 2.0 2141 | -10/Exiles | Warned to stay clear of 0b10 Research branches 2189 | -10/Exiles | Visited The Gauntlet 2412 | -10/Exiles | Build established: Hauler-Mutant 2457 | -10/Exiles | Identified exit to Mines 2457 | -10/Exiles | Discovered exit to Mines (range 14) 2470 | -10/Exiles | Left Exiles lab with Lightpack 2.0 2470 | -10/Exiles | Entered Mines 2478 | -9/Mines | Identified exit to Materials 2478 | -9/Mines | Discovered exit to Materials (range 10) 2480 | -9/Mines | Met a Derelict bent on vengeance 2485 | -9/Mines | Entered Materials 2485 | -8/Materials | Evolved 4 slots: Utility x4 2732 | -8/Materials | Repaired Exp. Sensor Array 2772 | -8/Materials | Build established: Hauler-Skirmisher 2852 | -8/Materials | Destroyed 7 combat bots 3213 | -8/Materials | Self-destructed Last Messages --------------- 03053_ Acquired Heat Sink. 03056_ Dropped Hrd. Light Armor Plating. 03066_ Dropped Terrain Scanner. 03067_ Acquired Adv. Visual Processing Unit. 03070_ Dropped Lgt. Ion Engine. 03070_ Acquired Imp. Terrain Scan Processor. 03076_ Connecting with Scanalyzer... 03090_ W-25 Informer knocked back. 03107_ Integration Channel disabled. 03139_ Processing Tank disabled. 03172_ K-01 Serf cleans the Terminal. 03188_ Destroyed Heat Sink. 03201_ Y-45 Defender heat short circuits Imp. Ion Engine. 03202_ Y-45 Defender heat short circuits Hvy. Assault Rifle. 03202_ K-01 Serf cleans the Terminal. 03203_ Y-45 Defender destroyed. 03204_ K-01 Serf cleans the Nuclear Reactor. 03205_ K-01 Serf cleans the Terminal. 03207_ K-01 Serf cleans the Nuclear Reactor. 03212_ K-01 Serf collects debris. Map ----- +----------------------------------------------------+ | ?????????????????????????????????????????????????? | | ?????????????????????????????????????????????????? | | ?????????????????????????????????????????????????? | | ?????????????????????????????????????????????????? | | ?????????????????????????????????????????????????? | | ?????????????????????????????????????????????????? | | ?????????????????????????????????????????????????? | | ????????????????????????????? ?????????????????? | | ????????????????????????????? ?????????????????? | | ????????????????????????????? #????????????????? | | ????????????????????????????# #????????????????? | | ????????????????????????????# #????????????????? | | ????????????????????????????# #????????????????? | | ????????????????????????????# #????????????????? | | ????????????????????????????# #????????????????? | | ????????????????????????????# #????????????????? | | ????????????????????????????# #????????????????? | | ????????????????????????????# #????????????????? | | ????????????????????????????# #????????????????? | | ????????????????????????????# +????????????????? | | ????????????????????????????# #?????????????#### | | ???????????????????########## #?????????????# | | ???????????????##### """ # #?????????????# | | ???????????????? k w "T" # #?????????????# | | ???????????????????# ^ "^" # #?????????????# | | ???????????????????# @ # #?????????????# | | ???????????????????# + ############### "" | | ???????????????????# """ # # "" | | ???????????????????# ^""" !# # "" | | ???????????????????# """k # # | | ???????????????????# k # #### | | ???????????????????# ######## """"" #??? | | ???????????????????##???????# """"""""" #??? | | ????????????????????????????# """ " #??? | | ????????????????????????????# #??? | | ????????????????????????????# #??? | | ????????????????????????????# """"" #### | | ????????????????????????????# """"""""" | | ????????????????????????????# """ """ | | ????????????????????????????# | | ????????????????????????#???# | | ???????????????? ??????##???# | | ???????????????????????????## ############ | | ???????????????????????????# #?#??????#?? | | ????????????????#?########## #######?###? | | ??????????????????# * # #????? | | ??????????????????# """ # #### ##### #??#?? | | ??????????????????# """ ! # ##?# ####? ##?#?? | | ????????????#?????# """ # #####+###### #???#? | | ???????????#??????# + # # +#####? | +----------------------------------------------------+ Best States ------------- Heat Dissipation 45 Energy Generation 14 Energy Capacity 265 Matter Stores 300 Matter Capacity 300 Sight Range 20 Robot Scan Range 30 Terrain Scan Range 14 Terrain Scan Density 10 Armor Coverage 300 Resistance: KI 35 Resistance: TH 35 Resistance: EX 35 Resistance: EM 35 Resistance: I 35 Resistance: S 35 Resistance: P 35 Evasion (%) 44 Offensive Hacking 20 Item Schematics ----------------- None Robot Schematics ------------------ None Fabricated ------------ Nothing Alien Tech Used ----------------- None Achievements -------------- Brute Force True Hacker Challenges ------------ None Game ------ Seed DisruptionExplosiveClaws Manual? 0 Play Time 00:39:48 Cumulative 22.9 hours Start 2021.02.26 @ 10:27:54 End 2021.02.26 @ 11:16:33 Sessions 1 Manual Loads 0 Difficulty Explorer Special Mode None Game No. 36 Rogue 15 Adventurer 15 Explorer 6 Win Type - Total 0 Types 0/0/0/0/0/0/0/0/0 Lore% 28 Gallery% 38 Achievement% 29 Wizard Run 0 Options --------- ASCII 0 Keyboard 0 Movement Mouse Keybinds 0 Fullscreen 2 Font 18/Terminus Map View 76x50 Tactical HUD 1 Map Filters NONE Filters NONE Steam 1 RUN: da50636f-e564-48e8-b27c-03ffbbaa7835